[Event "15th Chennai GM Open 2025"]
[Site "Chennai"]
[Date "2025.01.03"]
[Round "2.6"]
[White "Sarveshwaran V"]
[Black "Das, Sayantan"]
[Result "0-1"]
[ECO "B33"]
[WhiteElo "2150"]
[BlackElo "2434"]
[Annotator "TA"]
[PlyCount "92"]
[EventDate "2025.01.02"]
[EventType "swiss"]
[EventCountry "IND"]
[SourceTitle "playchess.com"]
[Source "ChessBase"]
[SourceQuality "1"]
[TimeControl "5400+30"]

{[%evp 9,92,26,68,41,83,43,45,43,53,53,62,2,28,18,20,0,21,0,12,-2,27,-114,-136,-115,-52,-39,-33,-78,-77,-71,-83,-70,-66,-77,-86,-111,-64,-83,-62,-68,-78,-128,-134,-119,-87,-150,-154,-281,-293,-329,-329,-341,-339,-356,-359,-735,-735,-735,-735,-1019,-1302,-1491,-1401,-1433,-1746,-2539,-2333,-2817,-2214,-5273,-4982,-6319,-2440,-29978,-29978,-29982,-29983,-29983,-29983,-29983,-29984,-29984,-29985,-29985,-29986]} 1. e4 {[%emt 0:00:03]} c5 {[%emt 0:05:15]} 2. Nf3 {[%emt 0:00:09]} Nc6 {[%emt 0:00:04]} 3. d4 {[%emt 0:00:07]} cxd4 {[%emt 0:00:05]} 4. Nxd4 {[%emt 0:00:06]} Nf6 {[%emt 0:00:14]} 5. Nc3 {[%emt 0:00:26]} h5 {[%emt 0:00:10]} 6. h3 {[%emt 0:09:11]} g6 {[%emt 0:01:14]} 7. Be2 {[%emt 0:01:15]} Bg7 {[%emt 0:00:17][%cal Of6e4]} 8. Be3 {[%emt 0:00:16]} O-O {[%emt 0:04:09]} 9. Nb3 {[%emt 0:02:25]} b6 {[%emt 0:09:24]} 10. O-O {[%emt 0:02:58]} (10. Qd2 $14) 10... Bb7 $11 {[%emt 0:00:53][%cal Od7d5]} 11. a3 {[%emt 0:08:44]} Rc8 {[%emt 0:04:47]} 12. f4 {[%emt 0:05:04]} d6 {[%emt 0:01:48]} 13. Bf3 {[%emt 0:02:33]} e6 {[%emt 0:09:45]} 14. Rf2 {[%emt 0:06:10]} Ne7 {[%emt 0:06:17][%cal Oc8c3]} 15. Rd2 {[%emt 0:15:09] [#]} (15. Qd3 $11) 15... Rxc3 $1 $17 {[%emt 0:07:03][%mdl 512]} 16. Rxd6 {[%emt 0:04:46] [#]} Qa8 {[%emt 0:12:54]} (16... Qc8 $1 $17 17. bxc3 Bxe4 (17... Nxe4 18. Bxe4 Bxe4 19. Bd4 $17)) 17. bxc3 $15 {[%emt 0:01:14]} Bxe4 {[%emt 0:00:09]} 18. Rd3 {[%emt 0:14:00] [#]} Bxf3 $1 {[%emt 0:04:26]} 19. Qxf3 {[%emt 0:01:28]} Qxf3 {[%emt 0:00:09]} 20. gxf3 {[%emt 0:00:04]} Nfd5 {[%emt 0:00:53][%cal Od5e3]} 21. Bd2 {[%emt 0:04:48][%cal Oc3c4]} Rc8 {[%emt 0:00:45][%cal Oa7a5]} 22. a4 {[%emt 0:02:51]} Nxc3 {[%emt 0:01:47] Black is more active.} (22... a5 $17 23. Rd1 Nf5 (23... Nxc3 24. Bxc3 Bxc3 25. Rd8+ Rxd8 26. Rxd8+ Kg7 27. Nd2 $11)) 23. a5 $1 {[%emt 0:01:49]} Ned5 {[%emt 0:07:26] Excellent horsemanship.} (23... Ne2+ $6 24. Kf2 Nc3 (24... Bxa1 25. Nxa1 Nxf4 26. Bxf4 $18) 25. Rd7 $11) 24. axb6 {[%emt 0:01:49]} axb6 {[%emt 0:00:50]} (24... Ne2+ 25. Kf1 axb6 (25... Nexf4 $2 26. b7 $18) (25... Ng3+ $2 26. Kg2 $18) 26. Kxe2 $16) 25. Bxc3 {[%emt 0:07:30]} ({Better is} 25. Ra7) 25... Bxc3 $17 {[%emt 0:02:28]} 26. Ra7 {[%emt 0:00:59]} Bf6 {[%emt 0:03:28]} ({Resist} 26... Nxf4 27. Rdd7 $15) 27. f5 {[%emt 0:02:15]} gxf5 {[%emt 0:01:12]} ({Don't play} 27... Rxc2 $6 28. fxg6 fxg6 29. Rb7 $15) 28. Rxd5 {[%emt 0:00:22]} (28. Rd2 $17) 28... exd5 {[%emt 0:00:05][%mdl 4096] Endgame KRB-KRN. Black is two pawns up.} 29. Ra2 {[%emt 0:01:51]} Rc3 {[%emt 0:01:22]} 30. Kf2 {[%emt 0:01:13]} b5 {[%emt 0:02:35]} 31. Nc1 {[%emt 0:00:52]} b4 {[%emt 0:01:07]} 32. Ne2 $2 {[%emt 0:00:42]} (32. Rb2) 32... Ra3 $19 {[%emt 0:03:06]} 33. Nc1 {[%emt 0:03:00]} Bg5 {[%emt 0:02:28]} 34. Rxa3 {[%emt 0:00:27]} bxa3 {[%emt 0:00:05] KB-KN. Black is two pawns up.} 35. Na2 {[%emt 0:00:04]} Kg7 {[%emt 0:00:05]} 36. Ke2 {[%emt 0:00:49]} Kf6 {[%emt 0:00:07]} 37. Kd3 {[%emt 0:00:43]} Ke5 {[%emt 0:00:11]} 38. Nc3 {[%emt 0:00:47]} h4 {[%emt 0:01:14] aiming for ...Kf4.} 39. Na2 {[%emt 0:00:30]} Be7 {[%emt 0:01:29]} 40. Kc3 {[%emt 0:00:30]} Kf4 {[%emt 0:00:19]} 41. Kd4 {[%emt 0:00:07]} Kg3 {[%emt 0:01:56]} 42. Kxd5 {[%emt 0:00:50]} Kxh3 {[%emt 0:00:04]} 43. c4 {[%emt 0:00:33]} Kg2 {[%emt 0:00:24]} 44. c5 {[%emt 0:00:17] [#]} Bxc5 $1 {[%emt 0:00:25][%mdl 512]} 45. Kxc5 {[%emt 0:00:05]} h3 {[%emt 0:00:05]} 46. f4 {[%emt 0:00:51]} h2 {[%emt 0:00:06]} 0-1

[Event "15th Chennai GM Open 2025"]
[Site "Chennai"]
[Date "2025.01.03"]
[Round "2.7"]
[White "Deepan Chakkravarthy J."]
[Black "Anadkat Kartavya"]
[Result "1-0"]
[ECO "C70"]
[WhiteElo "2413"]
[BlackElo "2139"]
[Annotator "TA"]
[PlyCount "113"]
[EventDate "2025.01.02"]
[EventType "swiss"]
[EventCountry "IND"]
[SourceTitle "playchess.com"]
[Source "ChessBase"]
[SourceQuality "1"]
[TimeControl "5400+30"]

{[%evp 9,113,47,65,52,83,68,63,63,64,64,69,67,73,79,70,64,62,52,64,60,67,58,65,72,70,74,75,65,203,192,196,200,206,213,194,199,198,172,191,146,169,100,143,108,100,102,101,96,110,108,97,96,96,97,91,87,104,103,124,70,98,85,88,85,91,122,187,119,139,146,161,97,120,0,160,167,240,256,283,303,322,319,261,174,156,154,178,169,170,171,291,293,416,401,740,675,674,678,960,935,29981,29982,29982,29983,29983,29984]} 1. e4 {[%emt 0:01:22][%cal Be2e4,Be4e5][%mdl 32]} e5 {[%emt 0:05:25]} 2. Nf3 {[%emt 0:00:04]} Nc6 {[%emt 0:00:13]} 3. Bb5 {[%emt 0:00:05][%cal Bf1b5,Bb5a4,Ba4b3][%mdl 32]} a6 {[%emt 0:00:11]} 4. Ba4 {[%emt 0:00:03]} f5 {[%emt 0:00:04]} 5. d4 {[%emt 0:00:03]} exd4 {[%emt 0:00:05]} 6. e5 $1 {[%emt 0:00:02][%cal Oe1g1]} (6. exf5 $6 Qe7+ 7. Qe2 Nf6 $15) 6... b5 {[%emt 0:00:04]} 7. Bb3 {[%emt 0:00:03][%cal Oe1g1]} Na5 {[%emt 0:00:03]} 8. Qxd4 {[%emt 0:00:10]} Bb7 {[%emt 0:00:10]} 9. Bd5 {[%emt 0:00:41]} c6 {[%emt 0:00:15]} 10. Bxg8 $1 {[%emt 0:00:02]} Rxg8 {[%emt 0:00:06]} 11. Qd3 {[%emt 0:00:43]} (11. Bg5 Qc7 $11) 11... Qe7 {[%emt 0:13:08]} 12. Qxf5 {[%emt 0:05:33]} h6 {[%emt 0:00:09]} 13. Nc3 {[%emt 0:09:06] White is more active.} Qe6 {[%emt 0:04:14] Inhibits Qg6+.} 14. Nd4 {[%emt 0:08:53]} Qxf5 {[%emt 0:04:19]} 15. Nxf5 {[%emt 0:00:02]} Nc4 {[%emt 0:07:19][%cal Oe8c8]} 16. O-O {[%emt 0:06:25]} O-O-O {[%emt 0:04:26][%cal Od8e8]} 17. Ne4 {[%emt 0:08:59]} Nxe5 {[%emt 0:14:57]} 18. Nfd6+ {[%emt 0:11:13] Excellent horsemanship.} Kc7 {[%emt 0:03:02] [#]} ({Black should try} 18... Bxd6 $1 $14 19. Nxd6+ Kc7) 19. Bd2 $1 $18 {[%emt 0:03:33]} Nc4 {[%emt 0:13:24] Inhibits Ba5+.} 20. Nxc4 {[%emt 0:00:10]} bxc4 {[%emt 0:00:02]} 21. Ba5+ {[%emt 0:00:05]} Kc8 {[%emt 0:00:05]} 22. Bxd8 {[%emt 0:03:01]} Kxd8 {[%emt 0:00:02]} 23. b3 {[%emt 0:00:14]} d5 {[%emt 0:01:01]} 24. Nd2 {[%emt 0:00:16]} c3 {[%emt 0:02:23]} 25. Nb1 {[%emt 0:10:27]} (25. Nf3 $18) 25... Be7 {[%emt 0:01:32]} 26. Nxc3 {[%emt 0:03:20]} Bf6 {[%emt 0:00:23] [#]} 27. Na4 $1 {[%emt 0:00:06]} Bxa1 {[%emt 0:00:14]} 28. Rxa1 $16 {[%emt 0:00:03][%mdl 4096] Endgame KRB-KRN. White is a pawn up.} Bc8 {[%emt 0:01:57]} 29. Rd1 {[%emt 0:05:27]} Kc7 {[%emt 0:00:32]} 30. f3 {[%emt 0:00:27]} a5 {[%emt 0:02:59]} 31. Kf2 {[%emt 0:00:27]} g5 {[%emt 0:01:30]} 32. c3 {[%emt 0:04:16]} h5 {[%emt 0:02:11]} 33. Rd4 {[%emt 0:01:53]} Kd6 {[%emt 0:03:29]} 34. c4 {[%emt 0:02:47]} (34. Nb2 $16) 34... Be6 {[%emt 0:00:40]} 35. c5+ {[%emt 0:00:48]} Ke5 {[%emt 0:00:44]} 36. Ke3 {[%emt 0:00:07]} Bf5 {[%emt 0:01:05]} 37. Nc3 {[%emt 0:00:33]} Rb8 {[%emt 0:02:50] [#]} (37... h4 $16 {was called for.} 38. Ne2 Rb8) 38. Ra4 {[%emt 0:01:13]} (38. h4 $1 $18 {[%cal Rh4g5]}) 38... h4 {[%emt 0:00:56][%cal Bh5h4,Bh4h3][%mdl 32]} 39. g3 {[%emt 0:02:38]} (39. Rxa5 $2 d4+ 40. Kd2 dxc3+ 41. Kxc3 Rd8 $19) 39... h3 {[%emt 0:02:38]} 40. Rd4 {[%emt 0:11:05]} (40. Rxa5 $2 d4+ 41. Kd2 dxc3+ 42. Kxc3 Rd8 43. f4+ gxf4 44. gxf4+ Kxf4 45. Ra4+ Kf3 $19) ({Better is} 40. Kd2 $18) 40... Rb7 {[%emt 0:01:32]} 41. Ra4 {[%emt 0:01:56]} Rb8 $1 {[%emt 0:01:12]} 42. Kd2 {[%emt 0:02:21]} (42. Rxa5 $2 d4+ 43. Kd2 dxc3+ 44. Kxc3 Rd8 45. f4+ gxf4 46. gxf4+ Kxf4 $19) 42... d4 {[%emt 0:06:22] [#]} (42... Bg6 $142) 43. Ne2 $1 $18 {[%emt 0:00:05]} Rd8 {[%emt 0:00:35]} 44. Rxa5 {[%emt 0:00:06]} g4 {[%emt 0:00:04]} 45. fxg4 {[%emt 0:00:50]} Bxg4 {[%emt 0:00:01]} 46. Ra7 {[%emt 0:00:59] Black must now prevent Nf4.} Kd5 {[%emt 0:01:38]} 47. Nf4+ {[%emt 0:00:38]} Kxc5 {[%emt 0:00:26]} 48. Rg7 {[%emt 0:00:05]} Bc8 {[%emt 0:00:12]} 49. Rh7 {[%emt 0:00:40]} Kb4 {[%emt 0:01:26]} (49... Rf8 $142 50. Rh5+ (50. Nxh3 Rf3 $16) 50... Kb6) 50. Rh5 {[%emt 0:00:47] Intending Nd3+ and mate.} ({Not} 50. Nxh3 Bxh3 (50... Ka3 $2 51. Ra7+ Kb2 52. Nf4 $18) 51. Rxh3 c5 $16) ({Don't take} 50. Nd3+ $6 Ka5 51. Rh6 Kb6 $16) 50... Ka3 {[%emt 0:01:06]} (50... Ba6 $142 51. Rxh3 Ka3) 51. Ra5+ {[%emt 0:00:07]} (51. Nxh3 Kxa2 52. b4 Be6 $15) 51... Kb2 {[%emt 0:00:06]} (51... Kb4 $142 52. Ra8 c5 53. Rb8+ Ka5) 52. Nd3+ {[%emt 0:00:28]} Kb1 {[%emt 0:00:07]} 53. Ra8 {[%emt 0:00:08]} Rg8 {[%emt 0:01:36]} 54. b4 {[%emt 0:00:08]} Be6 {[%emt 0:01:34]} 55. Rxg8 {[%emt 0:00:06]} Bxg8 {[%emt 0:00:01]} 56. a4 {[%emt 0:00:16][%cal Ba2a4,Ba4a5][%mdl 32]} Ka2 {[%emt 0:00:06]} 57. a5 {[%emt 0:00:37]} 1-0

[Event "15th Chennai GM Open 2025"]
[Site "Chennai"]
[Date "2025.01.03"]
[Round "2.8"]
[White "Vignesh B"]
[Black "Vaz, Ethan"]
[Result "0-1"]
[ECO "A48"]
[WhiteElo "2135"]
[BlackElo "2412"]
[Annotator "TA"]
[PlyCount "128"]
[EventDate "2025.01.02"]
[EventType "swiss"]
[EventCountry "IND"]
[SourceTitle "playchess.com"]
[Source "ChessBase"]
[SourceQuality "1"]
[TimeControl "5400+30"]

{[%evp 28,128,20,10,16,9,39,0,0,0,0,0,0,0,7,3,9,5,12,2,18,33,33,36,38,26,42,33,33,34,41,34,117,115,121,-205,-214,-211,-207,-207,-202,-218,-216,-219,-212,-229,-218,-252,-244,-257,-257,-254,-251,-263,-249,-219,-189,-189,-180,-164,-170,-162,-112,-119,-119,-164,-119,-220,-218,-677,-666,-681,-681,-654,-647,-759,-615,-29969,-29969,-29969,-29966,-12826,-6187,-5952,-5952,-2276,-1173,-1198,-1164,-1198,-1198,-1189,-1181,-1187,-1170,-1171,-1105,-1193,-1186,-5310,-5197,-5073,-3617]} 1. Nf3 {[%emt 0:06:28]} Nf6 {[%emt 0:00:11]} 2. b3 {[%emt 0:02:59]} g6 {[%emt 0:00:50]} 3. Bb2 {[%emt 0:00:05]} Bg7 {[%emt 0:00:02]} 4. e3 {[%emt 0:01:39]} O-O {[%emt 0:00:09]} 5. Be2 {[%emt 0:00:50]} d6 {[%emt 0:04:45]} 6. d4 {[%emt 0:00:36]} Nbd7 {[%emt 0:02:40]} 7. h3 {[%emt 0:07:51]} b6 {[%emt 0:01:49] A48: 1 d4 Nf6 2 Nf3 g6: Torre, London and Colle Systems.} 8. O-O {[%emt 0:03:37]} Bb7 {[%emt 0:00:02]} 9. c4 {[%emt 0:02:01]} Re8 {[%emt 0:02:59]} 10. Nc3 {[%emt 0:07:16]} e5 $146 {[%emt 0:06:27]} ({Predecessor:} 10... e6 11. Rc1 d5 12. cxd5 Nxd5 13. Nxd5 Bxd5 14. Qc2 c5 15. dxc5 Nxc5 16. Bxg7 Kxg7 {0-1 Hoang,T-Nguyen Thi Thu,Q VIE-ch U13 Girls 2002 (2)}) 11. Re1 {[%emt 0:01:03]} h6 {[%emt 0:08:30]} 12. b4 {[%emt 0:08:39]} Nh7 {[%emt 0:13:38]} 13. dxe5 {[%emt 0:17:26]} dxe5 {[%emt 0:03:08]} 14. Qb3 {[%emt 0:02:43]} Ng5 {[%emt 0:14:22]} 15. Nxg5 {[%emt 0:05:59]} Qxg5 {[%emt 0:00:11]} 16. Nd5 {[%emt 0:06:42]} Nf6 {[%emt 0:09:41]} 17. Bf1 {[%emt 0:01:04]} (17. Nxc7 $2 Qxg2#) 17... Nxd5 {[%emt 0:06:32]} 18. cxd5 {[%emt 0:00:02]} e4 {[%emt 0:01:39]} 19. Bxg7 {[%emt 0:05:40]} Kxg7 {[%emt 0:00:02]} 20. Red1 {[%emt 0:09:41]} Rad8 {[%emt 0:06:59]} 21. Qa4 {[%emt 0:04:42]} Bxd5 {[%emt 0:06:33]} 22. Qxa7 {[%emt 0:01:07]} Qe5 {[%emt 0:01:00]} 23. Qa4 {[%emt 0:01:27]} c6 {[%emt 0:03:32]} 24. Qc2 {[%emt 0:00:42]} b5 {[%emt 0:01:03]} 25. a4 {[%emt 0:00:25]} bxa4 $1 {[%emt 0:00:11]} 26. Rxa4 {[%emt 0:00:10]} Qf6 {[%emt 0:02:20]} 27. Ra6 {[%emt 0:00:37]} Re6 {[%emt 0:01:00]} 28. Rd4 {[%emt 0:01:12]} Red6 {[%emt 0:01:23]} 29. Qc5 {[%emt 0:00:36]} Bb3 {[%emt 0:00:57]} (29... R8d7 $14) 30. Rxd6 $1 $16 {[%emt 0:01:29]} (30. Rxe4 Rd1 31. Rd4 (31. Qxc6 $2 Qxc6 32. Rxc6 Bd5 $19) (31. Rxc6 $2 Rxf1+ 32. Kh2 Qxf2 $19) 31... R8xd4 32. exd4 Bd5 $17) 30... Rxd6 {[%emt 0:00:03]} 31. Ra3 $2 {[%emt 0:00:40][%mdl 8192] [#]} (31. b5 $16 {is forced if you want to stay better.} Rd2 32. Ra8 Qxf2+ 33. Kh2 Qxf1 34. Qc3+ (34. Qxc6 $2 Rxg2#) 34... f6 35. Ra7+ (35. Qxd2 Qxb5 36. Qd7+ Bf7 $18) 35... Bf7 36. Qxd2 Qxb5 37. Qd6) 31... Rd5 $1 $19 {[%emt 0:00:58]} 32. Rxb3 {[%emt 0:00:16]} Rxc5 {[%emt 0:00:02]} 33. bxc5 {[%emt 0:00:01]} Qe5 {[%emt 0:00:19]} 34. Rb4 {[%emt 0:00:01]} f5 {[%emt 0:00:56]} (34... Qxc5 35. Rxe4 Qd6 36. Rd4 $11) 35. Rc4 {[%emt 0:00:16]} g5 {[%emt 0:00:47]} 36. g3 {[%emt 0:00:36]} Kf6 {[%emt 0:00:39]} 37. Bg2 {[%emt 0:00:26]} Qd5 {[%emt 0:00:20]} 38. Bf1 {[%emt 0:01:14]} Ke5 {[%emt 0:00:24]} 39. Rc3 {[%emt 0:01:00]} Qd1 {[%emt 0:01:03]} 40. Rc4 {[%emt 0:00:23]} Qe1 {[%emt 0:00:47]} 41. Ra4 {[%emt 0:00:39]} Kd5 {[%emt 0:00:52]} 42. Ra8 {[%emt 0:00:08]} Qc3 {[%emt 0:00:13]} ({Much less strong is} 42... Kxc5 43. Rf8 $17) 43. Rf8 {[%emt 0:00:46]} Kxc5 {[%emt 0:00:29]} 44. Rxf5+ {[%emt 0:00:03]} Kd6 {[%emt 0:00:06]} (44... Kb4 $19 45. Kg2 Qg7) 45. Rf8 {[%emt 0:00:30]} c5 {[%emt 0:00:36]} 46. Ra8 {[%emt 0:00:34]} Qc1 {[%emt 0:01:05]} 47. Rd8+ {[%emt 0:01:02] [#]} (47. Ra6+ $17 Kd5 48. Ra5) 47... Ke7 $1 $19 {[%emt 0:00:40]} 48. Ra8 $2 {[%emt 0:00:33]} (48. Rc8) 48... c4 $19 {[%emt 0:00:09]} 49. Ra4 {[%emt 0:00:26]} c3 {[%emt 0:00:09]} 50. Rxe4+ {[%emt 0:00:07]} Kf6 {[%emt 0:00:23]} 51. Kg2 {[%emt 0:00:23]} Qd2 {[%emt 0:01:10]} 52. Bc4 {[%emt 0:01:02]} c2 {[%emt 0:00:07]} 53. Re6+ {[%emt 0:00:02]} Kg7 {[%emt 0:00:05]} 54. Re7+ {[%emt 0:00:04]} Kf8 {[%emt 0:00:18]} 55. Rf7+ {[%emt 0:00:06]} Ke8 {[%emt 0:00:04]} 56. Rc7 {[%emt 0:00:05]} c1=Q {[%emt 0:00:07]} (56... c1=B $2 57. Bb5+ Kf8 58. Be2 $19) 57. Bb5+ {[%emt 0:00:04]} Kf8 {[%emt 0:00:15]} 58. Rxc1 {[%emt 0:00:02]} Qxc1 {[%emt 0:00:05]} 59. Be2 {[%emt 0:00:45]} Qb2 {[%emt 0:01:12]} 60. Bf3 {[%emt 0:00:10]} Qf6 {[%emt 0:00:25]} 61. Be2 {[%emt 0:00:16]} Ke7 {[%emt 0:00:11]} 62. Bg4 {[%emt 0:00:25]} Kd6 {[%emt 0:00:07]} 63. f4 {[%emt 0:00:11]} Kc5 {[%emt 0:00:32]} 64. Be2 {[%emt 0:00:09]} Qe6 {[%emt 0:00:21]} 0-1

[Event "15th Chennai GM Open 2025"]
[Site "Chennai"]
[Date "2025.01.03"]
[Round "2.9"]
[White "Fedorov, Alexei"]
[Black "Rajarishi Karthi"]
[Result "0-1"]
[ECO "C19"]
[WhiteElo "2409"]
[BlackElo "2131"]
[Annotator "TA"]
[PlyCount "86"]
[EventDate "2025.01.02"]
[EventType "swiss"]
[EventCountry "IND"]
[SourceTitle "playchess.com"]
[Source "ChessBase"]
[SourceQuality "1"]
[TimeControl "5400+30"]

{[%evp 16,86,19,24,15,22,14,0,61,23,13,-1,0,-30,-33,-29,-42,-39,-20,-30,-18,-32,-33,-39,-41,-34,-25,-53,0,-63,-57,-133,-144,-275,-279,-299,-291,-272,-281,-320,-305,-429,-395,-1173,-1146,-982,-927,-1475,-1183,-1335,-1319,-1008,-1056,-1362,-1139,-1035,-854,-856,-795,-29975,-29976,-29967,-29966,-5297,-2759,-29980,-29981,-29976,-29979,-29980,-29981,-29981,-29982]} 1. e4 {[%emt 0:00:03]} e6 {[%emt 0:13:55]} 2. d4 {[%emt 0:00:10]} d5 {[%emt 0:00:18]} 3. Nc3 {[%emt 0:00:05]} Bb4 {[%emt 0:00:16]} 4. e5 {[%emt 0:00:05]} c5 {[%emt 0:00:13]} 5. a3 {[%emt 0:00:08]} Bxc3+ {[%emt 0:00:18]} 6. bxc3 {[%emt 0:00:04]} Ne7 {[%emt 0:00:12]} 7. a4 {[%emt 0:02:58]} Qc7 {[%emt 0:04:49]} 8. Nf3 {[%emt 0:00:12]} Nbc6 {[%emt 0:01:19]} 9. Ba3 {[%emt 0:04:08]} b6 {[%emt 0:01:58]} 10. Bd3 {[%emt 0:00:47]} h6 {[%emt 0:00:54]} 11. O-O {[%emt 0:00:14]} Bd7 {[%emt 0:03:32]} ({Better is} 11... O-O $11) 12. Re1 {[%emt 0:04:47]} Na5 {[%emt 0:01:43]} 13. h4 {[%emt 0:10:24]} Bxa4 {[%emt 0:02:58]} 14. Bxc5 {[%emt 0:18:33]} bxc5 {[%emt 0:03:55]} 15. Rxa4 {[%emt 0:00:03]} c4 {[%emt 0:00:54]} 16. Bf1 {[%emt 0:00:15]} Rb8 {[%emt 0:02:03]} 17. h5 {[%emt 0:01:20]} Nac6 {[%emt 0:01:16]} 18. g3 {[%emt 0:04:26]} Rb5 {[%emt 0:04:23]} 19. Qd2 {[%emt 0:09:44]} Ra5 {[%emt 0:01:36]} 20. Rxa5 {[%emt 0:05:59]} Qxa5 {[%emt 0:01:06]} 21. Bh3 {[%emt 0:00:11]} Kd7 {[%emt 0:04:01]} (21... Qa2 $15) 22. Nh4 {[%emt 0:08:15]} (22. Qf4 $11 Ke8 23. Qd2) 22... Rb8 $15 {[%emt 0:01:28]} 23. Ng2 {[%emt 0:11:45]} (23. f4 $1 $15) 23... Qa2 $1 $17 {[%emt 0:02:29]} 24. Qc1 {[%emt 0:04:31] Inhibits Rb1.} (24. f4 $17 {was called for.}) 24... a5 $19 {[%emt 0:01:12]} 25. Ne3 {[%emt 0:00:17] [#]} a4 $1 {[%emt 0:00:21]} 26. Qa1 {[%emt 0:05:08] [#]} Rb2 $1 {[%emt 0:00:26]} 27. Kg2 {[%emt 0:05:02]} a3 {[%emt 0:01:49] aiming for ...Qxa1.} 28. Qd1 {[%emt 0:00:03]} (28. Qxa2 $142 Rxa2 29. Rc1) 28... Rb5 {[%emt 0:01:20]} 29. Qg4 $2 {[%emt 0:01:21]} (29. Rf1) 29... Rb1 {[%emt 0:03:59] Active counter play!} 30. Qxg7 {[%emt 0:02:26]} Rxe1 {[%emt 0:00:39]} 31. Qxf7 {[%emt 0:00:47] [#]} Rxe3 $1 {[%emt 0:00:18]} 32. Bxe6+ {[%emt 0:00:47]} Kc7 {[%emt 0:02:49]} 33. Bxd5 {[%emt 0:00:09] [#]} Kb6 $1 {[%emt 0:00:54]} 34. Bxc6 {[%emt 0:00:49]} Nxc6 {[%emt 0:00:12]} 35. d5 {[%emt 0:00:42]} Nxe5 {[%emt 0:07:49]} (35... Rxc3 36. dxc6 Rxc2 (36... Qxc2 $2 {too greedy.} 37. Qb7+ Ka5 38. c7 $18) 37. Qb7+ Kc5 38. c7 Rxf2+ 39. Kh3 $11) 36. Qe6+ {[%emt 0:01:11]} Ka5 {[%emt 0:00:16]} 37. d6 {[%emt 0:00:36]} Qxc2 {[%emt 0:00:24]} 38. Qd5+ {[%emt 0:00:07]} Ka4 {[%emt 0:00:10]} 39. d7 {[%emt 0:00:20]} Rd3 {[%emt 0:02:46]} 40. d8=Q {[%emt 0:01:05]} Rxd5 {[%emt 0:00:11]} 41. Qxd5 {[%emt 0:00:02]} Qxc3 {[%emt 0:00:09]} 42. Qa8+ {[%emt 0:00:33]} Kb3 {[%emt 0:00:08]} 43. Qb8+ {[%emt 0:00:45]} Kc2 {[%emt 0:00:10]} 0-1

[Event "15th Chennai GM Open 2025"]
[Site "Chennai"]
[Date "2025.01.03"]
[Round "2.10"]
[White "Bhosale Shriraj"]
[Black "Kaustuv, Kundu"]
[Result "0-1"]
[ECO "B10"]
[WhiteElo "2125"]
[BlackElo "2409"]
[Annotator "TA"]
[PlyCount "88"]
[EventDate "2025.01.02"]
[EventType "swiss"]
[EventCountry "IND"]
[SourceTitle "playchess.com"]
[Source "ChessBase"]
[SourceQuality "1"]
[TimeControl "5400+30"]

{[%evp 15,88,-20,-10,-10,-10,-27,0,-6,0,-34,-5,-38,-39,-35,-14,-8,-22,-20,-22,-27,-29,-29,-25,-24,-34,-21,-18,-28,-10,-22,-9,-25,-18,-14,0,-28,-29,-24,-10,-105,-64,-77,-52,-72,-65,-221,-216,-325,-302,-327,-321,-375,-294,-617,-595,-637,-463,-635,-517,-1031,-1012,-982,-211,-1303,-1204,-1312,-1265,-1059,-2801,-2368,-2100,-29959,-29961,-29960,-6129]} 1. e4 {[%emt 0:00:11]} c6 {[%emt 0:04:21]} 2. d3 {[%emt 0:01:05]} d5 {[%emt 0:00:14]} 3. Nd2 {[%emt 0:00:06]} e5 {[%emt 0:00:21]} 4. Ngf3 {[%emt 0:00:09]} Bd6 {[%emt 0:00:20]} 5. g3 {[%emt 0:00:22]} Nf6 {[%emt 0:03:50]} 6. Bg2 {[%emt 0:00:18]} O-O {[%emt 0:00:14]} 7. O-O {[%emt 0:00:08]} Re8 {[%emt 0:00:00]} 8. c3 {[%emt 0:01:48]} Nbd7 {[%emt 0:00:36]} 9. Qc2 {[%emt 0:01:29]} a5 {[%emt 0:02:43]} 10. a4 {[%emt 0:00:43]} b6 {[%emt 0:00:40]} 11. Re1 {[%emt 0:05:27]} Ba6 {[%emt 0:00:40]} 12. Nb3 {[%emt 0:02:38]} Rc8 {[%emt 0:03:49]} 13. h3 {[%emt 0:04:03]} Qc7 {[%emt 0:05:13]} 14. Nh4 {[%emt 0:07:06][%cal Bf3h4,Bh4f5,Bf5h6][%mdl 32]} Bb7 {[%emt 0:06:58]} 15. Nf5 {[%emt 0:04:41]} Bf8 {[%emt 0:00:24]} 16. exd5 {[%emt 0:19:40]} cxd5 {[%emt 0:01:15][%cal Od5d4] And now ...d4! would win.} 17. d4 {[%emt 0:00:04]} e4 {[%emt 0:01:35]} 18. Bf4 {[%emt 0:00:07]} Qc6 {[%emt 0:00:21]} 19. g4 {[%emt 0:00:41] Prevents Nh5.} g6 {[%emt 0:01:47]} 20. Nh6+ {[%emt 0:01:33]} Kg7 {[%emt 0:01:10]} 21. Qc1 {[%emt 0:03:40]} Ba6 {[%emt 0:07:25]} (21... Ng8 {simplifies} 22. Nxg8 Kxg8 23. Qe3 Bd6) 22. Nd2 {[%emt 0:01:41]} Ng8 {[%emt 0:02:27] Active counter play!} 23. Nf1 {[%emt 0:05:57]} Nxh6 {[%emt 0:04:08]} 24. Bxh6+ {[%emt 0:00:12]} Kg8 {[%emt 0:00:06]} 25. Ng3 {[%emt 0:01:24]} (25. Qe3 $5) 25... Bd6 {[%emt 0:02:24]} 26. Qe3 {[%emt 0:02:49]} Nf8 {[%emt 0:08:29]} 27. Rac1 {[%emt 0:11:59]} (27. f4 $1 $11) 27... Bc4 {[%emt 0:05:02]} 28. Nf1 {[%emt 0:11:33]} Bb8 {[%emt 0:03:36]} (28... Qxa4 29. f3 $11) 29. Nd2 {[%emt 0:03:11]} Bd3 {[%emt 0:02:38]} (29... Qxa4 $6 30. f3 $11) 30. c4 $2 {[%emt 0:05:56]} Qd6 $40 {[%emt 0:03:28][%mdl 128] Black attacks with force.} (30... Bxc4 $2 31. b3 $18) 31. f4 {[%emt 0:00:19]} (31. Qg3 {keeps fighting.} Qxg3 (31... Bxc4 32. Qxd6 Bxd6 33. Nxc4 $14) 32. fxg3) 31... exf3 {[%emt 0:03:31]} ({Weaker is} 31... Bxc4 32. Nxc4 Rxc4 33. Rxc4 dxc4 34. Bxe4 $11) 32. Qxf3 {[%emt 0:00:09]} dxc4 {[%emt 0:00:10]} 33. d5 {[%emt 0:02:59] Against Ne6} Nd7 {[%emt 0:02:38][%cal Ob6b5]} 34. Ne4 $2 {[%emt 0:01:46]} (34. Nf1) 34... Qh2+ {[%emt 0:02:29]} 35. Kf2 {[%emt 0:00:01]} Be5 {[%emt 0:00:24]} 36. Ng3 {[%emt 0:01:32]} Bxb2 {[%emt 0:05:45]} 37. Be3 {[%emt 0:00:44] Prevents Bd4} (37. Qf4 $142 Ba3 38. Nf1 Qxf4+ 39. Bxf4) 37... Ne5 {[%emt 0:05:02]} 38. Qf4 {[%emt 0:00:33] [#]} Be4 $2 {[%emt 0:00:59]} 39. Qxe4 $2 {[%emt 0:00:37]} (39. Nxe4 Nd3+ 40. Kf3 Qxf4+ (40... Nxf4 $2 {perishes.} 41. Bxf4 Bxc1 42. Bxh2 $18) 41. Bxf4 Nxe1+ (41... Bxc1 42. Nf6+ Kh8 43. Rxe8+ Rxe8 44. Bxc1 $16) (41... Rxe4 42. Rxe4 Bxc1 43. Bg3 $17) 42. Rxe1) 39... Nd3+ {[%emt 0:00:38]} 40. Qxd3 {[%emt 0:00:10]} cxd3 {[%emt 0:00:06]} 41. Rxc8 {[%emt 0:00:28]} Rxc8 {[%emt 0:00:07]} 42. Kf3 {[%emt 0:00:12]} Rc2 {[%emt 0:01:37]} 43. Bf2 {[%emt 0:01:11]} d2 {[%emt 0:00:21]} 44. Rd1 {[%emt 0:00:31]} Rc3+ {[%emt 0:00:06]} (44... Rc1 $142 45. Rxd2 Rc3+ 46. Be3 Rxe3+ 47. Kxe3 Qxg3+ 48. Ke4 Qe5+ 49. Kf3 Qc3+ 50. Ke2 Bc1 51. h4 Qxd2+ 52. Kf1 Bb2 53. Bf3 Bd4 54. Be2 Qf4+ 55. Kg2 Qf2+ 56. Kh3 Be5 57. h5 Qh2#) 0-1